[Event "Titled Tuesday Blitz February 14 Early 2023"]
[White "Ruge, Edison"]
[Black "Liu, Casper"]
[WhiteFideId "4401000"]
[BlackFideId "1454153"]
[WhiteElo "2201"]
[BlackElo "2278"]
[Result "1/2-1/2"]
[Round "03"]
[TimeControl "180+2"]
[Date "2023.02.15"]
[WhiteClock "0:00:03"]
[BlackClock "0:01:32"]

1. e4 {[%clk 0:02:58]}  c5 {[%clk 0:03:00]} 2. Nc3 {[%clk 0:02:58]}  d6 {[%clk 0:02:58]} 3. f4 {[%clk 0:02:58]}  a6 {[%clk 0:02:56]} 4. Nf3 {[%clk 0:02:59]}  e6 {[%clk 0:02:56]} 5. d3 {[%clk 0:02:53]}  Ne7 {[%clk 0:02:56]} 6. g3 {[%clk 0:02:53]}  b5 {[%clk 0:02:57]} 7. Bg2 {[%clk 0:02:53]}  Bb7 {[%clk 0:02:57]} 8. O-O {[%clk 0:02:54]}  Nbc6 {[%clk 0:02:57]} 9. Be3 {[%clk 0:02:48]}  g6 {[%clk 0:02:57]} 10. Bf2 {[%clk 0:02:48]}  Bg7 {[%clk 0:02:57]} 11. g4 {[%clk 0:02:47]}  b4 {[%clk 0:02:57]} 12. Ne2 {[%clk 0:02:42]}  Bxb2 {[%clk 0:02:56]} 13. d4 {[%clk 0:02:38]}  Bxa1 {[%clk 0:02:56]} 14. Qxa1 {[%clk 0:02:37]}  O-O {[%clk 0:02:55]} 15. dxc5 {[%clk 0:02:34]}  dxc5 {[%clk 0:02:55]} 16. Bxc5 {[%clk 0:02:34]}  Qa5 {[%clk 0:02:56]} 17. Be3 {[%clk 0:02:18]}  Rfd8 {[%clk 0:02:55]} 18. Ng3 {[%clk 0:02:15]}  Qb5 {[%clk 0:02:55]} 19. Qf6 {[%clk 0:02:07]}  Kf8 {[%clk 0:02:16]} 20. Ng5 {[%clk 0:02:05]}  Ke8 {[%clk 0:02:16]} 21. Qxf7+ {[%clk 0:02:03]}  Kd7 {[%clk 0:02:16]} 22. Qxe6+ {[%clk 0:02:02]}  Kc7 {[%clk 0:02:16]} 23. e5 {[%clk 0:01:46]}  Nd5 {[%clk 0:02:09]} 24. Qf7+ {[%clk 0:00:56]}  Rd7 {[%clk 0:02:09]} 25. Ne6+ {[%clk 0:00:56]}  Kc8 {[%clk 0:02:08]} 26. Qg8+ {[%clk 0:00:48]}  Nd8 {[%clk 0:02:07]} 27. Bd4 {[%clk 0:00:22]}  Ne7 {[%clk 0:01:55]} 28. Bxb7+ {[%clk 0:00:14]}  Qxb7 {[%clk 0:01:50]} 29. Nxd8 {[%clk 0:00:14]}  Rxd8 {[%clk 0:01:43]} 30. Qc4+ {[%clk 0:00:15]}  Qc7 {[%clk 0:01:41]} 31. Qxc7+ {[%clk 0:00:15]}  Kxc7 {[%clk 0:01:42]} 32. Be3 {[%clk 0:00:15]}  Nd5 {[%clk 0:01:41]} 33. Bc5 {[%clk 0:00:14]}  Kc6 {[%clk 0:01:40]} 34. Ne4 {[%clk 0:00:14]}  Nc3 {[%clk 0:01:39]} 35. Nxc3 {[%clk 0:00:11]}  Kxc5 {[%clk 0:01:40]} 36. Ne4+ {[%clk 0:00:11]}  Kd4 {[%clk 0:01:40]} 37. Ng5 {[%clk 0:00:10]}  Rdc8 {[%clk 0:01:39]} 38. Nxh7 {[%clk 0:00:10]}  Rxc2 {[%clk 0:01:38]} 39. Ng5 {[%clk 0:00:10]}  Rh8 {[%clk 0:01:37]} 40. e6 {[%clk 0:00:08]}  Rxa2 {[%clk 0:01:33]} 41. e7 {[%clk 0:00:07]}  Re2 {[%clk 0:01:33]} 42. Nf3+ {[%clk 0:00:04]}  Kd5 {[%clk 0:01:31]} 43. Ne5 {[%clk 0:00:05]}  Rhxh2 {[%clk 0:01:26]} 44. Rd1+ {[%clk 0:00:03]}  Kc5 {[%clk 0:01:26]} 45. e8=Q {[%clk 0:00:02]}  Reg2+ {[%clk 0:01:26]} 46. Kf1 {[%clk 0:00:03]}  Rf2+ {[%clk 0:01:27]} 47. Ke1 {[%clk 0:00:03]}  Re2+ {[%clk 0:01:27]} 48. Kf1 {[%clk 0:00:03]}  Rhf2+ {[%clk 0:01:28]} 49. Kg1 {[%clk 0:00:02]}  Rg2+ {[%clk 0:01:29]} 50. Kf1 {[%clk 0:00:02]}  Rgf2+ {[%clk 0:01:29]} 51. Kg1 {[%clk 0:00:02]}  Rg2+ {[%clk 0:01:30]} 52. Kf1 {[%clk 0:00:03]}  Ref2+ {[%clk 0:01:31]} 53. Ke1 {[%clk 0:00:03]}  Re2+ {[%clk 0:01:32]} 54. Kf1 {[%clk 0:00:03]} 1/2-1/2


[Site "https://www.chess.com"]

[Event "Titled Tuesday Blitz February 14 Early 2023"]
[White "Kowalysko, Roman"]
[Black "Buscar, Michael"]
[WhiteFideId "30918510"]
[BlackFideId "2603616"]
[WhiteElo "1888"]
[BlackElo "2041"]
[Result "0-1"]
[Round "03"]
[TimeControl "180+2"]
[Date "2023.02.15"]
[WhiteClock "0:00:35"]
[BlackClock "0:00:24"]

1. Nc3 {[%clk 0:02:55]}  Nf6 {[%clk 0:02:57]} 2. e4 {[%clk 0:02:56]}  Nc6 {[%clk 0:02:52]} 3. Nf3 {[%clk 0:02:55]}  e5 {[%clk 0:02:52]} 4. Bb5 {[%clk 0:02:55]}  Bc5 {[%clk 0:02:50]} 5. O-O {[%clk 0:02:55]}  d6 {[%clk 0:02:42]} 6. d4 {[%clk 0:02:55]}  exd4 {[%clk 0:02:41]} 7. Nxd4 {[%clk 0:02:55]}  Bd7 {[%clk 0:02:41]} 8. Nf5 {[%clk 0:02:56]}  O-O {[%clk 0:02:34]} 9. Bg5 {[%clk 0:02:56]}  Ne5 {[%clk 0:02:22]} 10. Nd5 {[%clk 0:02:47]}  Bxb5 {[%clk 0:02:17]} 11. Nxf6+ {[%clk 0:02:47]}  gxf6 {[%clk 0:02:12]} 12. Bh6 {[%clk 0:02:48]}  Bd7 {[%clk 0:02:04]} 13. Qh5 {[%clk 0:02:17]}  Bxf5 {[%clk 0:01:11]} 14. exf5 {[%clk 0:02:18]}  Re8 {[%clk 0:01:10]} 15. b4 {[%clk 0:02:01]}  Bxb4 {[%clk 0:00:57]} 16. f4 {[%clk 0:01:58]}  Ng6 {[%clk 0:00:57]} 17. fxg6 {[%clk 0:01:58]}  hxg6 {[%clk 0:00:45]} 18. Qg4 {[%clk 0:01:55]}  Bc5+ {[%clk 0:00:40]} 19. Kh1 {[%clk 0:01:55]}  f5 {[%clk 0:00:35]} 20. Qg3 {[%clk 0:01:54]}  Bd4 {[%clk 0:00:35]} 21. Bg5 {[%clk 0:01:50]}  Bf6 {[%clk 0:00:36]} 22. Rab1 {[%clk 0:01:40]}  Bxg5 {[%clk 0:00:35]} 23. fxg5 {[%clk 0:01:34]}  b6 {[%clk 0:00:34]} 24. h4 {[%clk 0:01:35]}  Re4 {[%clk 0:00:30]} 25. Rf4 {[%clk 0:01:26]}  Qe7 {[%clk 0:00:20]} 26. Rbf1 {[%clk 0:01:24]}  Kg7 {[%clk 0:00:18]} 27. Qc3+ {[%clk 0:01:23]}  Qe5 {[%clk 0:00:18]} 28. Qf3 {[%clk 0:01:16]}  Rxf4 {[%clk 0:00:18]} 29. Qxf4 {[%clk 0:01:16]}  Qxf4 {[%clk 0:00:19]} 30. Rxf4 {[%clk 0:01:17]}  Re8 {[%clk 0:00:19]} 31. a4 {[%clk 0:00:57]}  Re4 {[%clk 0:00:17]} 32. g3 {[%clk 0:00:33]}  Rxf4 {[%clk 0:00:15]} 33. gxf4 {[%clk 0:00:34]}  f6 {[%clk 0:00:14]} 34. Kg2 {[%clk 0:00:34]}  fxg5 {[%clk 0:00:15]} 35. hxg5 {[%clk 0:00:35]}  Kf7 {[%clk 0:00:15]} 36. Kf3 {[%clk 0:00:36]}  Ke6 {[%clk 0:00:15]} 37. Ke3 {[%clk 0:00:37]}  c5 {[%clk 0:00:15]} 38. c4 {[%clk 0:00:36]}  d5 {[%clk 0:00:15]} 39. Kd3 {[%clk 0:00:37]}  a6 {[%clk 0:00:14]} 40. Kc3 {[%clk 0:00:37]}  Kd6 {[%clk 0:00:14]} 41. Kd3 {[%clk 0:00:36]}  Kc6 {[%clk 0:00:14]} 42. Kc3 {[%clk 0:00:35]}  d4+ {[%clk 0:00:15]} 43. Kd3 {[%clk 0:00:35]}  b5 {[%clk 0:00:16]} 44. axb5+ {[%clk 0:00:35]}  axb5 {[%clk 0:00:16]} 45. cxb5+ {[%clk 0:00:35]}  Kxb5 {[%clk 0:00:17]} 46. Kd2 {[%clk 0:00:35]}  c4 {[%clk 0:00:17]} 47. Kc2 {[%clk 0:00:36]}  Kc5 {[%clk 0:00:18]} 48. Kd2 {[%clk 0:00:36]}  Kd5 {[%clk 0:00:19]} 49. Ke2 {[%clk 0:00:37]}  Ke4 {[%clk 0:00:20]} 50. Kf2 {[%clk 0:00:34]}  Kxf4 {[%clk 0:00:21]} 51. Kg2 {[%clk 0:00:33]}  Kxg5 {[%clk 0:00:21]} 52. Kg3 {[%clk 0:00:33]}  f4+ {[%clk 0:00:22]} 53. Kf3 {[%clk 0:00:34]}  Kf5 {[%clk 0:00:23]} 54. Kf2 {[%clk 0:00:35]}  g5 {[%clk 0:00:24]} 55. Kf3 {[%clk 0:00:35]}  g4+ {[%clk 0:00:24]} 0-1


[Site "https://www.chess.com"]

[Event "Titled Tuesday Blitz February 14 Early 2023"]
[White "Manon-og, Ramon Jr."]
[Black "Larina, Maria"]
[WhiteFideId "5200776"]
[BlackFideId "24113182"]
[WhiteElo "1999"]
[BlackElo "1948"]
[Result "1-0"]
[Round "03"]
[TimeControl "180+2"]
[Date "2023.02.15"]
[WhiteClock "0:00:50"]
[BlackClock "0:00:04"]

1. e4 {[%clk 0:02:59]}  c6 {[%clk 0:02:59]} 2. d4 {[%clk 0:02:56]}  d5 {[%clk 0:03:00]} 3. e5 {[%clk 0:02:56]}  c5 {[%clk 0:03:00]} 4. dxc5 {[%clk 0:02:56]}  Nc6 {[%clk 0:02:59]} 5. f4 {[%clk 0:02:54]}  e6 {[%clk 0:02:53]} 6. a3 {[%clk 0:02:54]}  Bxc5 {[%clk 0:02:52]} 7. Nf3 {[%clk 0:02:55]}  Qb6 {[%clk 0:02:46]} 8. Qd2 {[%clk 0:02:51]}  a5 {[%clk 0:02:37]} 9. Nc3 {[%clk 0:02:50]}  Be7 {[%clk 0:02:22]} 10. Bd3 {[%clk 0:02:41]}  g6 {[%clk 0:01:55]} 11. Nb5 {[%clk 0:02:29]}  Qd8 {[%clk 0:01:36]} 12. O-O {[%clk 0:02:27]}  Nh6 {[%clk 0:01:32]} 13. Kh1 {[%clk 0:02:10]}  O-O {[%clk 0:01:31]} 14. Qf2 {[%clk 0:02:09]}  Bd7 {[%clk 0:01:21]} 15. Qg3 {[%clk 0:02:08]}  Kh8 {[%clk 0:01:14]} 16. Qh3 {[%clk 0:02:04]}  Nf5 {[%clk 0:01:11]} 17. g4 {[%clk 0:02:01]}  Ng7 {[%clk 0:01:03]} 18. Bd2 {[%clk 0:01:52]}  f5 {[%clk 0:00:42]} 19. exf6 {[%clk 0:01:29]}  Bxf6 {[%clk 0:00:40]} 20. Bc3 {[%clk 0:01:10]}  Qe7 {[%clk 0:00:14]} 21. Bxg6 {[%clk 0:01:07]}  Ne8 {[%clk 0:00:12]} 22. Ng5 {[%clk 0:00:59]}  Bxc3 {[%clk 0:00:06]} 23. Nxh7 {[%clk 0:00:54]}  Kg7 {[%clk 0:00:04]} 24. Nxf8 {[%clk 0:00:53]}  Qxf8 {[%clk 0:00:04]} 25. Qh7+ {[%clk 0:00:50]}  Kf6 {[%clk 0:00:04]} 26. g5# {[%clk 0:00:50]} 1-0


[Site "https://www.chess.com"]

[Event "Titled Tuesday Blitz February 14 Early 2023"]
[White "Kiseleva, Arina"]
[Black "Ruiz Aguilar, Pablo Alexander"]
[WhiteFideId "4164989"]
[BlackFideId "4401352"]
[WhiteElo "1962"]
[BlackElo "2161"]
[Result "1-0"]
[Round "03"]
[TimeControl "180+2"]
[Date "2023.02.15"]
[WhiteClock "0:00:06"]
[BlackClock "0:00:01"]

1. d4 {[%clk 0:03:00]}  d5 {[%clk 0:02:55]} 2. Nf3 {[%clk 0:02:58]}  Nf6 {[%clk 0:02:53]} 3. e3 {[%clk 0:02:59]}  c6 {[%clk 0:02:52]} 4. Bd3 {[%clk 0:02:57]}  Bg4 {[%clk 0:02:50]} 5. Nbd2 {[%clk 0:02:57]}  e6 {[%clk 0:02:50]} 6. h3 {[%clk 0:02:57]}  Bh5 {[%clk 0:02:49]} 7. O-O {[%clk 0:02:57]}  Bg6 {[%clk 0:02:48]} 8. Ne5 {[%clk 0:02:55]}  Bxd3 {[%clk 0:02:47]} 9. cxd3 {[%clk 0:02:51]}  Nbd7 {[%clk 0:02:47]} 10. f4 {[%clk 0:02:50]}  Be7 {[%clk 0:02:47]} 11. Ndf3 {[%clk 0:02:43]}  Nxe5 {[%clk 0:02:38]} 12. fxe5 {[%clk 0:02:35]}  Nd7 {[%clk 0:02:37]} 13. e4 {[%clk 0:02:34]}  dxe4 {[%clk 0:02:29]} 14. dxe4 {[%clk 0:02:33]}  Qb6 {[%clk 0:02:29]} 15. Be3 {[%clk 0:02:28]}  O-O-O {[%clk 0:02:13]} 16. Qe2 {[%clk 0:02:21]}  Kb8 {[%clk 0:01:59]} 17. Rfc1 {[%clk 0:02:06]}  h5 {[%clk 0:01:47]} 18. a4 {[%clk 0:01:55]}  a5 {[%clk 0:01:42]} 19. Qf2 {[%clk 0:01:47]}  Qa6 {[%clk 0:01:35]} 20. Nd2 {[%clk 0:01:11]}  f6 {[%clk 0:01:29]} 21. exf6 {[%clk 0:01:06]}  gxf6 {[%clk 0:01:27]} 22. Nc4 {[%clk 0:01:01]}  Rdg8 {[%clk 0:01:10]} 23. b3 {[%clk 0:00:55]}  h4 {[%clk 0:01:05]} 24. Qf4+ {[%clk 0:00:41]}  Kc8 {[%clk 0:00:49]} 25. d5 {[%clk 0:00:32]}  e5 {[%clk 0:00:48]} 26. Qf5 {[%clk 0:00:27]}  Kd8 {[%clk 0:00:33]} 27. dxc6 {[%clk 0:00:27]}  Qxc6 {[%clk 0:00:21]} 28. Nxe5 {[%clk 0:00:22]}  Nxe5 {[%clk 0:00:21]} 29. Rxc6 {[%clk 0:00:21]}  bxc6 {[%clk 0:00:21]} 30. Bb6+ {[%clk 0:00:15]}  Ke8 {[%clk 0:00:19]} 31. Bxa5 {[%clk 0:00:13]}  Rg5 {[%clk 0:00:18]} 32. Qf1 {[%clk 0:00:10]}  Rhg8 {[%clk 0:00:17]} 33. Ra2 {[%clk 0:00:10]}  Bc5+ {[%clk 0:00:14]} 34. Kh1 {[%clk 0:00:09]}  Kf7 {[%clk 0:00:11]} 35. b4 {[%clk 0:00:09]}  Be3 {[%clk 0:00:09]} 36. Re2 {[%clk 0:00:08]}  Bd4 {[%clk 0:00:06]} 37. b5 {[%clk 0:00:06]}  cxb5 {[%clk 0:00:05]} 38. axb5 {[%clk 0:00:07]}  Nd3 {[%clk 0:00:05]} 39. Rd2 {[%clk 0:00:05]}  Nf2+ {[%clk 0:00:03]} 40. Rxf2 {[%clk 0:00:05]}  Bxf2 {[%clk 0:00:04]} 41. Qxf2 {[%clk 0:00:06]}  Rxb5 {[%clk 0:00:03]} 42. Qa2+ {[%clk 0:00:06]}  Kg7 {[%clk 0:00:01]} 43. Bc3 {[%clk 0:00:06]} 1-0


[Site "https://www.chess.com"]

[Event "Titled Tuesday Blitz February 14 Early 2023"]
[White "Levine, David"]
[Black "Nikologorsky, Matfei"]
[WhiteFideId "2011611"]
[BlackFideId "24102474"]
[WhiteElo "2040"]
[BlackElo "2182"]
[Result "0-1"]
[Round "03"]
[TimeControl "180+2"]
[Date "2023.02.15"]
[WhiteClock "0:00:01"]
[BlackClock "0:00:33"]

1. d4 {[%clk 0:02:59]}  Nf6 {[%clk 0:02:59]} 2. c4 {[%clk 0:02:59]}  e6 {[%clk 0:02:59]} 3. g3 {[%clk 0:02:59]}  d5 {[%clk 0:02:57]} 4. Bg2 {[%clk 0:02:59]}  dxc4 {[%clk 0:02:51]} 5. Nf3 {[%clk 0:02:57]}  c5 {[%clk 0:02:50]} 6. O-O {[%clk 0:02:50]}  Nc6 {[%clk 0:02:48]} 7. Qa4 {[%clk 0:02:45]}  cxd4 {[%clk 0:02:38]} 8. Qxc4 {[%clk 0:02:45]}  Qd5 {[%clk 0:02:33]} 9. Nbd2 {[%clk 0:02:36]}  Qxc4 {[%clk 0:02:14]} 10. Nxc4 {[%clk 0:02:35]}  Be7 {[%clk 0:02:01]} 11. Rd1 {[%clk 0:02:33]}  O-O {[%clk 0:01:51]} 12. Bf4 {[%clk 0:02:22]}  Nd5 {[%clk 0:01:48]} 13. Nxd4 {[%clk 0:02:18]}  Nxf4 {[%clk 0:01:44]} 14. gxf4 {[%clk 0:02:18]}  Nxd4 {[%clk 0:01:44]} 15. Rxd4 {[%clk 0:02:17]}  Bf6 {[%clk 0:01:45]} 16. Rd2 {[%clk 0:02:17]}  Rb8 {[%clk 0:01:44]} 17. Na5 {[%clk 0:02:07]}  a6 {[%clk 0:01:26]} 18. e3 {[%clk 0:02:03]}  b5 {[%clk 0:01:25]} 19. Rc1 {[%clk 0:01:54]}  Rb6 {[%clk 0:01:20]} 20. Rc7 {[%clk 0:01:39]}  e5 {[%clk 0:01:16]} 21. fxe5 {[%clk 0:01:24]}  Bxe5 {[%clk 0:01:15]} 22. Re7 {[%clk 0:01:16]}  Bf6 {[%clk 0:01:13]} 23. Rc7 {[%clk 0:01:10]}  Be6 {[%clk 0:01:12]} 24. b3 {[%clk 0:01:06]}  h5 {[%clk 0:01:08]} 25. Bf3 {[%clk 0:01:02]}  h4 {[%clk 0:01:07]} 26. Kg2 {[%clk 0:01:00]}  Rc8 {[%clk 0:01:01]} 27. Rxc8+ {[%clk 0:00:49]}  Bxc8 {[%clk 0:01:02]} 28. h3 {[%clk 0:00:46]}  Bf5 {[%clk 0:00:55]} 29. Nb7 {[%clk 0:00:32]}  Bc3 {[%clk 0:00:48]} 30. Rd8+ {[%clk 0:00:22]}  Kh7 {[%clk 0:00:48]} 31. Nd6 {[%clk 0:00:19]}  Bb1 {[%clk 0:00:42]} 32. Nxf7 {[%clk 0:00:17]}  Bxa2 {[%clk 0:00:41]} 33. Be4+ {[%clk 0:00:11]}  g6 {[%clk 0:00:38]} 34. Ng5+ {[%clk 0:00:11]}  Kg7 {[%clk 0:00:38]} 35. f4 {[%clk 0:00:09]}  Bxb3 {[%clk 0:00:35]} 36. Rd7+ {[%clk 0:00:09]}  Kg8 {[%clk 0:00:35]} 37. Nf7 {[%clk 0:00:05]}  Bg7 {[%clk 0:00:33]} 38. Ng5 {[%clk 0:00:05]}  a5 {[%clk 0:00:33]} 39. Kf3 {[%clk 0:00:02]}  a4 {[%clk 0:00:33]} 40. Kg4 {[%clk 0:00:02]}  a3 {[%clk 0:00:34]} 41. Kxh4 {[%clk 0:00:01]}  a2 {[%clk 0:00:34]} 42. Re7 {[%clk 0:00:01]}  a1=Q {[%clk 0:00:33]} 0-1


[Site "https://www.chess.com"]

[Event "Titled Tuesday Blitz February 14 Early 2023"]
[White "Osuna Vega, Enrique"]
[Black "Weisz, Bryan"]
[WhiteFideId "2219549"]
[BlackFideId "30934133"]
[WhiteElo "2061"]
[BlackElo "1973"]
[Result "0-1"]
[Round "03"]
[TimeControl "180+2"]
[Date "2023.02.15"]
[WhiteClock "0:00:55"]
[BlackClock "0:00:33"]

1. e4 {[%clk 0:03:00]}  e5 {[%clk 0:03:00]} 2. Nf3 {[%clk 0:02:59]}  Nc6 {[%clk 0:02:28]} 3. Bb5 {[%clk 0:02:59]}  Nf6 {[%clk 0:02:28]} 4. d3 {[%clk 0:02:59]}  h6 {[%clk 0:02:27]} 5. Bxc6 {[%clk 0:02:55]}  dxc6 {[%clk 0:02:25]} 6. Nxe5 {[%clk 0:02:55]}  Bc5 {[%clk 0:02:24]} 7. Nf3 {[%clk 0:02:51]}  g5 {[%clk 0:02:23]} 8. d4 {[%clk 0:02:46]}  Bb6 {[%clk 0:02:11]} 9. e5 {[%clk 0:02:45]}  Nd5 {[%clk 0:01:52]} 10. c4 {[%clk 0:02:42]}  Ne7 {[%clk 0:01:33]} 11. c5 {[%clk 0:02:39]}  Ba5+ {[%clk 0:01:29]} 12. Kf1 {[%clk 0:02:35]}  b6 {[%clk 0:01:14]} 13. Qa4 {[%clk 0:02:27]}  Ba6+ {[%clk 0:00:58]} 14. Kg1 {[%clk 0:02:26]}  Bb5 {[%clk 0:00:48]} 15. Qa3 {[%clk 0:02:20]}  g4 {[%clk 0:00:43]} 16. b4 {[%clk 0:01:34]}  gxf3 {[%clk 0:00:41]} 17. bxa5 {[%clk 0:01:34]}  Qxd4 {[%clk 0:00:40]} 18. h3 {[%clk 0:00:59]}  Rg8 {[%clk 0:00:35]} 19. g3 {[%clk 0:00:55]}  Rxg3+ {[%clk 0:00:33]} 0-1


[Site "https://www.chess.com"]

[Event "Titled Tuesday Blitz February 14 Early 2023"]
[White "Levitan, Caleb Levi"]
[Black "Ricaurte Lopez, Juan Carlos"]
[WhiteFideId "14332620"]
[BlackFideId "3600327"]
[WhiteElo "2129"]
[BlackElo "2226"]
[Result "0-1"]
[Round "03"]
[TimeControl "180+2"]
[Date "2023.02.15"]
[WhiteClock "0:00:02"]
[BlackClock "0:00:41"]

1. e4 {[%clk 0:03:00]}  e5 {[%clk 0:02:58]} 2. Nf3 {[%clk 0:03:01]}  Nc6 {[%clk 0:02:56]} 3. Bb5 {[%clk 0:03:01]}  a6 {[%clk 0:02:53]} 4. Ba4 {[%clk 0:03:00]}  Nf6 {[%clk 0:02:51]} 5. Qe2 {[%clk 0:03:01]}  b5 {[%clk 0:02:47]} 6. Bb3 {[%clk 0:03:00]}  Bc5 {[%clk 0:02:46]} 7. d3 {[%clk 0:02:58]}  d6 {[%clk 0:02:44]} 8. c3 {[%clk 0:02:57]}  Be6 {[%clk 0:02:37]} 9. Nbd2 {[%clk 0:02:55]}  h6 {[%clk 0:02:31]} 10. Nf1 {[%clk 0:02:53]}  O-O {[%clk 0:02:26]} 11. Ng3 {[%clk 0:02:52]}  Bxb3 {[%clk 0:02:26]} 12. axb3 {[%clk 0:02:51]}  d5 {[%clk 0:02:26]} 13. O-O {[%clk 0:02:51]}  dxe4 {[%clk 0:02:21]} 14. dxe4 {[%clk 0:02:49]}  Qd7 {[%clk 0:02:16]} 15. Rd1 {[%clk 0:02:41]}  Qe6 {[%clk 0:02:16]} 16. Be3 {[%clk 0:02:28]}  Bxe3 {[%clk 0:02:12]} 17. Qxe3 {[%clk 0:02:28]}  Qxb3 {[%clk 0:02:11]} 18. Qc5 {[%clk 0:02:09]}  Qe6 {[%clk 0:02:10]} 19. h3 {[%clk 0:01:50]}  Rfe8 {[%clk 0:01:59]} 20. Nh4 {[%clk 0:01:33]}  g6 {[%clk 0:01:53]} 21. Nf3 {[%clk 0:01:22]}  Kg7 {[%clk 0:01:52]} 22. Rd2 {[%clk 0:01:16]}  Nd7 {[%clk 0:01:40]} 23. Qe3 {[%clk 0:01:08]}  Nb6 {[%clk 0:01:39]} 24. Rad1 {[%clk 0:01:04]}  Nc4 {[%clk 0:01:38]} 25. Qc5 {[%clk 0:00:58]}  Nxd2 {[%clk 0:01:38]} 26. Rxd2 {[%clk 0:00:57]}  Red8 {[%clk 0:01:36]} 27. h4 {[%clk 0:00:20]}  Rxd2 {[%clk 0:01:31]} 28. Nxd2 {[%clk 0:00:21]}  Rd8 {[%clk 0:01:29]} 29. Qe3 {[%clk 0:00:22]}  Na5 {[%clk 0:01:24]} 30. h5 {[%clk 0:00:20]}  Nc4 {[%clk 0:01:23]} 31. Nxc4 {[%clk 0:00:19]}  bxc4 {[%clk 0:01:21]} 32. hxg6 {[%clk 0:00:19]}  fxg6 {[%clk 0:01:20]} 33. Qc5 {[%clk 0:00:19]}  Rd7 {[%clk 0:01:18]} 34. Qb4 {[%clk 0:00:09]}  Qc6 {[%clk 0:01:13]} 35. Qa5 {[%clk 0:00:07]}  Qb5 {[%clk 0:01:12]} 36. Qa3 {[%clk 0:00:06]}  a5 {[%clk 0:01:04]} 37. Kh2 {[%clk 0:00:05]}  a4 {[%clk 0:01:04]} 38. f3 {[%clk 0:00:02]}  c5 {[%clk 0:01:03]} 39. Qa1 {[%clk 0:00:02]}  Rd2 {[%clk 0:01:01]} 40. Nf1 {[%clk 0:00:02]}  Rxb2 {[%clk 0:00:58]} 41. Ne3 {[%clk 0:00:02]}  Qb3 {[%clk 0:00:50]} 42. Qc1 {[%clk 0:00:02]}  a3 {[%clk 0:00:43]} 43. Qf1 {[%clk 0:00:01]}  a2 {[%clk 0:00:42]} 44. Nxc4 {[%clk 0:00:02]}  Rb1 {[%clk 0:00:41]} 0-1


[Site "https://www.chess.com"]

[Event "Titled Tuesday Blitz February 14 Early 2023"]
[White "Jesusesmifuerza"]
[Black "Jimenez, Joaquin"]
[BlackFideId "109860"]
[WhiteElo "2006"]
[BlackElo "2195"]
[Result "1/2-1/2"]
[Round "03"]
[TimeControl "180+2"]
[Date "2023.02.15"]
[WhiteClock "0:00:24"]
[BlackClock "0:01:00"]

1. d4 {[%clk 0:03:00]}  Nf6 {[%clk 0:02:59]} 2. Nc3 {[%clk 0:03:01]}  d5 {[%clk 0:02:58]} 3. Bf4 {[%clk 0:03:01]}  g6 {[%clk 0:02:57]} 4. e3 {[%clk 0:02:58]}  Bg7 {[%clk 0:02:58]} 5. Nb5 {[%clk 0:02:58]}  Na6 {[%clk 0:02:56]} 6. h3 {[%clk 0:02:57]}  O-O {[%clk 0:02:54]} 7. Nf3 {[%clk 0:02:55]}  Ne4 {[%clk 0:02:53]} 8. c3 {[%clk 0:02:51]}  c5 {[%clk 0:02:50]} 9. Be2 {[%clk 0:02:44]}  cxd4 {[%clk 0:02:48]} 10. exd4 {[%clk 0:02:37]}  Bd7 {[%clk 0:02:46]} 11. O-O {[%clk 0:02:34]}  Qb6 {[%clk 0:02:44]} 12. a4 {[%clk 0:02:32]}  Bxb5 {[%clk 0:02:37]} 13. Bxb5 {[%clk 0:02:23]}  Rac8 {[%clk 0:02:32]} 14. Ne5 {[%clk 0:02:18]}  Bxe5 {[%clk 0:02:29]} 15. Bxe5 {[%clk 0:02:17]}  Nc7 {[%clk 0:02:24]} 16. Qe2 {[%clk 0:02:11]}  Nxb5 {[%clk 0:02:24]} 17. Qxb5 {[%clk 0:02:09]}  Qxb5 {[%clk 0:02:09]} 18. axb5 {[%clk 0:02:10]}  Ra8 {[%clk 0:02:09]} 19. Ra2 {[%clk 0:01:51]}  a5 {[%clk 0:02:09]} 20. bxa6 {[%clk 0:01:49]}  Rxa6 {[%clk 0:02:07]} 21. Rxa6 {[%clk 0:01:49]}  bxa6 {[%clk 0:02:07]} 22. Ra1 {[%clk 0:01:49]}  Ra8 {[%clk 0:02:08]} 23. f3 {[%clk 0:01:41]}  Nd2 {[%clk 0:02:05]} 24. Kf2 {[%clk 0:01:31]}  f6 {[%clk 0:02:03]} 25. Bf4 {[%clk 0:01:29]}  Nc4 {[%clk 0:02:04]} 26. b3 {[%clk 0:01:24]}  Nb6 {[%clk 0:02:04]} 27. Ke3 {[%clk 0:01:19]}  e6 {[%clk 0:01:56]} 28. Kd3 {[%clk 0:01:18]}  Kf7 {[%clk 0:01:51]} 29. Bd6 {[%clk 0:01:18]}  Nd7 {[%clk 0:01:44]} 30. b4 {[%clk 0:01:16]}  e5 {[%clk 0:01:43]} 31. Ra5 {[%clk 0:01:05]}  Ke6 {[%clk 0:01:41]} 32. Bc5 {[%clk 0:01:02]}  h5 {[%clk 0:01:13]} 33. b5 {[%clk 0:01:01]}  Nb8 {[%clk 0:01:08]} 34. b6 {[%clk 0:00:53]}  Nc6 {[%clk 0:01:06]} 35. b7 {[%clk 0:00:52]}  Rb8 {[%clk 0:01:02]} 36. Rxa6 {[%clk 0:00:52]}  Kd7 {[%clk 0:01:02]} 37. Ra8 {[%clk 0:00:38]}  Rxb7 {[%clk 0:01:01]} 38. Rg8 {[%clk 0:00:37]}  g5 {[%clk 0:01:01]} 39. Rg7+ {[%clk 0:00:35]}  Kc8 {[%clk 0:01:01]} 40. Rg8+ {[%clk 0:00:33]}  Kd7 {[%clk 0:01:00]} 41. Rg7+ {[%clk 0:00:33]}  Kc8 {[%clk 0:01:00]} 42. Rg8+ {[%clk 0:00:24]}  Kd7 {[%clk 0:01:00]} 1/2-1/2


[Site "https://www.chess.com"]